fUST/lending_fUST_20250929
["ID","MTS","AMOUNT","RATE_DAILY","PERIOD"]
[388343504,1759110641086,-151.0,0.00027397,7]
[388343505,1759110641095,-151.0,0.00027397,7]
[388343506,1759110641104,-151.0,0.00027397,7]
[388343507,1759110641113,-151.0,0.00027397,7]
[388343508,1759110641123,-151.0,0.00027397,7]
[388343509,1759110641132,-152.345222,0.00027397,7]
[388343510,1759110641141,-822.68,0.00027397,7]
[388343511,1759110641150,-151.0,0.00027397,7]
[388343512,1759110641160,-151.0,0.00027397,7]
[388343513,1759110641170,-151.0,0.00027397,7]
[388343514,1759110641179,-151.0,0.00027397,7]
[388343515,1759110641188,-151.0,0.00027397,7]
[388343516,1759110641198,-151.0,0.00027397,7]
[388343517,1759110641207,-151.0,0.00027397,7]
[388343518,1759110641217,-151.0,0.00027397,7]
[388343519,1759110641226,-151.0,0.00027397,7]
[388343520,1759110641235,-151.0,0.00027397,7]
[388343521,1759110641244,-151.0,0.00027397,7]
[388343522,1759110641254,-480.0,0.00027397,7]
[388343523,1759110641263,-151.0,0.00027397,7]
[388343524,1759110641272,-151.0,0.00027397,7]
[388343525,1759110641282,-151.0,0.00027397,7]
[388343526,1759110641291,-211.477727,0.00027397,7]
[388343527,1759110641300,-211.477727,0.00027397,7]
[388343528,1759110641309,-211.477727,0.00027397,7]
[388343529,1759110641319,-211.477727,0.00027397,7]
[388343530,1759110641328,-211.477727,0.00027397,7]
[388343531,1759110641337,-211.477727,0.00027397,7]
[388343532,1759110641346,-211.477727,0.00027397,7]
[388343533,1759110641355,-211.477727,0.00027397,7]
[388343534,1759110641365,-151.0,0.00027397,7]
[388343535,1759110641378,-151.0,0.00027397,7]
[388343536,1759110641388,-151.0,0.00027397,7]
[388343537,1759110641398,-151.0,0.00027397,7]
[388343538,1759110641407,-480.0,0.00027397,7]
[388343539,1759110641416,-151.0,0.00027397,7]
[388343540,1759110641426,-180.685742,0.00027397,7]
[388343541,1759110641435,-151.0,0.00027397,7]
[388343542,1759110641444,-152.598444,0.00027397,7]
[388343543,1759110641454,-159.711407,0.00027397,7]
[388343544,1759110641463,-151.0,0.00027397,7]
[388343545,1759110641472,-152.222469,0.00027397,7]
[388343546,1759110641481,-151.0,0.00027397,7]
[388343547,1759110641490,-151.0,0.00027397,7]
[388343548,1759110641499,-151.0,0.00027397,7]
[388343549,1759110641507,-151.0,0.00027397,7]
[388343550,1759110641517,-153.934691,0.00027397,7]
[388343551,1759110641526,-356.333628,0.00027397,7]
[388343552,1759110641535,-356.333628,0.00027397,7]
[388343553,1759110641544,-356.333628,0.00027397,7]
[388343554,1759110641553,-299.086206,0.00027397,7]
[388343555,1759110641562,-356.333628,0.00027397,7]
[388343556,1759110641571,-299.086206,0.00027397,7]
[388343557,1759110641580,-356.333628,0.00027397,7]
[388343558,1759110641590,-356.333628,0.00027397,7]
[388343559,1759110641599,-356.333628,0.00027397,7]
[388343560,1759110641609,-356.333628,0.00027397,7]
[388343561,1759110641618,-299.086206,0.00027397,7]
[388343562,1759110641628,-151.0,0.00027397,7]
[388343563,1759110641638,-299.086206,0.00027397,7]
[388343565,1759110641648,-151.0,0.00027397,7]
[388343566,1759110641657,-299.086206,0.00027397,7]
[388343567,1759110641667,-299.086206,0.00027397,7]
[388343568,1759110641677,-299.086206,0.00027397,7]
[388343569,1759110641686,-299.086206,0.00027397,7]
[388343570,1759110641696,-499.77,0.00027397,7]
[388343571,1759110641707,-398.162585,0.00027397,7]
[388343572,1759110641716,-398.162585,0.00027397,7]
[388343573,1759110641725,-398.162585,0.00027397,7]
[388343574,1759110641734,-484.24,0.00027397,7]
[388343575,1759110641743,-560.91,0.00027397,7]
[388343576,1759110641753,-151.0,0.00027397,7]
[388343577,1759110641763,-398.162585,0.00027397,7]
[388343578,1759110641772,-151.0,0.00027397,7]
[388343579,1759110641781,-154.297007,0.00027397,7]
[388343580,1759110641790,-398.162585,0.00027397,7]
[388343581,1759110641800,-398.162585,0.00027397,7]
[388343582,1759110641809,-398.162585,0.00027397,7]
[388343583,1759110641818,-398.162585,0.00027397,7]
[388343584,1759110641827,-151.0,0.00027397,7]
[388343585,1759110641837,-151.0,0.00027397,7]
[388343586,1759110641847,-308.955078,0.00027397,7]
[388343587,1759110641856,-151.0,0.00027397,7]
[388343588,1759110641865,-308.955078,0.00027397,7]
[388343589,1759110641874,-151.0,0.00027397,7]
[388343590,1759110641883,-308.955078,0.00027397,7]
[388343591,1759110641892,-308.955078,0.00027397,7]
[388343592,1759110641901,-151.0,0.00027397,7]
[388343593,1759110641910,-151.0,0.00027397,7]
[388343594,1759110641919,-308.955078,0.00027397,7]
[388343595,1759110641928,-308.955078,0.00027397,7]
[388343596,1759110641939,-151.0,0.00027397,7]
[388343597,1759110641949,-151.0,0.00027397,7]
[388343598,1759110641958,-308.955078,0.00027397,7]
[388343599,1759110641967,-151.0,0.00027397,7]
[388343600,1759110641976,-308.955078,0.00027397,7]
[388343601,1759110641986,-220.973075,0.00027397,7]
[388343602,1759110641995,-153.04937,0.00027397,7]
[388343603,1759110642004,-151.0,0.00027397,7]
[388343604,1759110642014,-151.0,0.00027397,7]
[388343605,1759110642024,-151.0,0.00027397,7]
[388343606,1759110642033,-152.44373,0.00027397,7]
[388343607,1759110642042,-151.0,0.00027397,7]
[388343608,1759110642051,-151.0,0.00027397,7]
[388343609,1759110642060,-151.0,0.00027397,7]
[388343610,1759110642068,-151.0,0.00027397,7]
[388343611,1759110642077,-151.0,0.00027397,7]
[388343612,1759110642086,-480.0,0.00027397,7]
[388343613,1759110642096,-480.0,0.00027397,7]
[388343614,1759110642105,-589.13,0.00027397,7]
[388343615,1759110642115,-480.0,0.00027397,7]
[388343616,1759110642124,-606.09334735,0.00027397,7]
[388343617,1759110642135,-480.0,0.00027397,7]
[388343618,1759110642144,-488.24,0.00027397,7]
[388343619,1759110642153,-480.0,0.00027397,7]
[388343620,1759110642163,-637.99,0.00027397,7]
[388343621,1759110642172,-387.58425131,0.00027397,7]
[388343622,1759110642182,-480.0,0.00027397,7]
[388343623,1759110642191,-480.0,0.00027397,7]
[388343624,1759110642200,-480.0,0.00027397,7]
[388343625,1759110642209,-481.90348909,0.00027397,7]
[388343626,1759110642218,-517.08,0.00027397,7]
[388343627,1759110642228,-482.0891319,0.00027397,7]
[388343628,1759110642237,-480.0,0.00027397,7]
[388343629,1759110642247,-482.05150474,0.00027397,7]
[388343631,1759110642256,-422.32616876,0.00027397,7]
[388343632,1759110642266,-482.08908715,0.00027397,7]
[388343633,1759110642275,-625.51,0.00027397,7]
[388343638,1759110642441,-599.45,0.00027397,7]
[388343640,1759110642452,-506.38,0.00027397,7]
[388343642,1759110642461,-482.25393551,0.00027397,7]
[388343643,1759110642470,-480.0,0.00027397,7]
[388343644,1759110642479,-480.0,0.00027397,7]
[388343645,1759110642488,-481.99801886,0.00027397,7]
[388343646,1759110642497,-480.0,0.00027397,7]
[388343647,1759110642507,-271.66130833,0.00027397,7]
[388343648,1759110642518,-482.48289931,0.00027397,7]
[388343649,1759110642527,-480.0,0.00027397,7]
[388343650,1759110642537,-222.87936159,0.00027397,7]
[388343651,1759110642545,-714.62,0.00027397,7]
[388343652,1759110642555,-480.0,0.00027397,7]
[388343653,1759110642564,-480.96131699,0.00027397,7]
[388343654,1759110642573,-400.291874,0.00027397,7]
[388343655,1759110642583,-480.0,0.00027397,7]
[388343656,1759110642593,-500.0,0.00027397,7]
[388343657,1759110642602,-735.39,0.00027397,7]
[388343658,1759110642611,-481.42768938,0.00027397,7]
[388343659,1759110642620,-480.0,0.00027397,7]
[388343660,1759110642630,-482.32956335,0.00027397,7]
[388343661,1759110642639,-481.81837346,0.00027397,7]
[388343662,1759110642648,-480.0,0.00027397,7]
[388343663,1759110642657,-480.0,0.00027397,7]
[388343664,1759110642666,-480.0,0.00027397,7]
[388343665,1759110642675,-481.72565459,0.00027397,7]
[388343666,1759110642683,-482.05281932,0.00027397,7]
[388343667,1759110642693,-480.0,0.00027397,7]
[388343668,1759110642703,-480.0,0.00027397,7]
[388343669,1759110642712,-481.79125473,0.00027397,7]
[388343670,1759110642721,-318.42721548,0.00027397,7]
[388343671,1759110642730,-481.77561292,0.00027397,7]
[388343672,1759110642740,-480.0,0.00027397,7]
[388343673,1759110642749,-481.95830789,0.00027397,7]
[388343674,1759110642758,-480.0,0.00027397,7]
[388343675,1759110642767,-480.0,0.00027397,7]
[388343676,1759110642776,-492.41258199,0.00027397,7]
[388343677,1759110642785,-480.0,0.00027397,7]
[388343678,1759110642794,-482.32382435,0.00027397,7]
[388343679,1759110642803,-480.0,0.00027397,7]
[388343680,1759110642812,-480.0,0.00027397,7]
[388343681,1759110642821,-533.33,0.00027397,7]
[388343682,1759110642830,-480.0,0.00027397,7]
[388343683,1759110642839,-481.77854237,0.00027397,7]
[388343684,1759110642848,-480.0,0.00027397,7]
[388343685,1759110642857,-726.42,0.00027397,7]
[388343686,1759110642866,-480.0,0.00027397,7]
[388343687,1759110642875,-480.0,0.00027397,7]
[388343688,1759110642884,-480.0,0.00027397,7]
[388343689,1759110642893,-796.86,0.00027397,7]
[388343690,1759110642902,-480.0,0.00027397,7]
[388343691,1759110642911,-500.0,0.00027397,7]
[388343692,1759110642921,-480.0,0.00027397,7]
[388343693,1759110642931,-480.0,0.00027397,7]
[388343694,1759110642940,-480.0,0.00027397,7]
[388343695,1759110642949,-518.35,0.00027397,7]
[388343696,1759110642958,-480.0,0.00027397,7]
[388343697,1759110642967,-586.39560832,0.00027397,7]
[388343698,1759110642977,-480.0,0.00027397,7]
[388343699,1759110642987,-526.19,0.00027397,7]
[388343700,1759110642996,-530.89,0.00027397,7]
[388343701,1759110643005,-508.77,0.00027397,7]
[388343702,1759110643015,-630.57,0.00027397,7]
[388343703,1759110643025,-481.2073126,0.00027397,7]
[388343704,1759110643034,-782.67,0.00027397,7]
[388343705,1759110643044,-480.0,0.00027397,7]
[388343706,1759110643053,-338.45612413,0.00027397,7]
[388343707,1759110643063,-683.56,0.00027397,7]
[388343708,1759110643072,-480.0,0.00027397,7]
[388343709,1759110643081,-480.0,0.00027397,7]
[388343710,1759110643091,-483.3,0.00027397,7]
[388343711,1759110643100,-480.0,0.00027397,7]
[388343712,1759110643109,-480.0,0.00027397,7]
[388343713,1759110643117,-480.0,0.00027397,7]
[388343714,1759110643127,-481.47267589,0.00027397,7]
[388343715,1759110643135,-481.60276382,0.00027397,7]
[388343716,1759110643144,-480.0,0.00027397,7]
[388343717,1759110643153,-480.0,0.00027397,7]
[388343718,1759110643162,-480.0,0.00027397,7]
[388343719,1759110643171,-480.0,0.00027397,7]
[388343720,1759110643180,-480.0,0.00027397,7]
[388343721,1759110643190,-696.63,0.00027397,7]
[388343722,1759110643199,-480.0,0.00027397,7]
[388343723,1759110643208,-480.0,0.00027397,7]
[388343724,1759110643217,-481.33749666,0.00027397,7]
[388343725,1759110643226,-480.0,0.00027397,7]
[388343726,1759110643235,-480.0,0.00027397,7]
[388343727,1759110643244,-482.73162975,0.00027397,7]
[388343728,1759110643252,-481.95990337,0.00027397,7]
[388343729,1759110643261,-480.0,0.00027397,7]
[388343730,1759110643271,-480.0,0.00027397,7]
[388343731,1759110643281,-480.0,0.00027397,7]
[388343732,1759110643291,-481.40030905,0.00027397,7]
[388343733,1759110643300,-480.0,0.00027397,7]
[388343734,1759110643309,-480.0,0.00027397,7]
[388343735,1759110643318,-518.08,0.00027397,7]
[388343736,1759110643326,-480.0,0.00027397,7]
[388343737,1759110643335,-481.62912936,0.00027397,7]
[388343738,1759110643344,-480.0,0.00027397,7]
[388343739,1759110643356,-480.0,0.00027397,7]
[388343740,1759110643368,-481.31572995,0.00027397,7]
[388343741,1759110643377,-181.55818244,0.00027397,7]
[388343742,1759110643407,-299.91697994,0.00027397,7]
[388343743,1759110643417,-481.50102329,0.00027397,7]
[388343744,1759110643426,-480.0,0.00027397,7]
[388343745,1759110643435,-542.2,0.00027397,7]
[388343746,1759110643444,-480.0,0.00027397,7]
[388343747,1759110643454,-638.51,0.00027397,7]
[388343748,1759110643463,-676.75,0.00027397,7]
[388343749,1759110643472,-480.0,0.00027397,7]
[388343750,1759110643482,-522.21909243,0.00027397,3]
[388343751,1759110643491,-480.0,0.00027397,7]
[388343752,1759110643501,-480.0,0.00027397,7]
[388343753,1759110643510,-598.59,0.00027397,7]
[388343754,1759110643522,-587.36,0.00027397,7]
[388343755,1759110643531,-481.93966476,0.00027397,7]
[388343756,1759110643540,-480.0,0.00027397,7]
[388343757,1759110643550,-585.01,0.00027397,7]
[388343758,1759110643560,-480.0,0.00027397,7]
[388343759,1759110643570,-480.0,0.00027397,7]
[388343760,1759110643579,-480.0,0.00027397,7]
[388343761,1759110643589,-603.04,0.00027397,7]
[388343762,1759110643599,-906.94,0.00027397,7]
[388343763,1759110643609,-480.0,0.00027397,7]
[388343764,1759110643618,-480.0,0.00027397,7]
[388343765,1759110643627,-453.39304695,0.00027397,7]
[388343766,1759110643635,-480.0,0.00027397,7]
[388343767,1759110643645,-480.0,0.00027397,7]
[388343768,1759110643653,-480.0,0.00027397,7]
[388343769,1759110643662,-1252.6,0.00027397,7]
[388343770,1759110643671,-480.0,0.00027397,7]
[388343771,1759110643681,-807.15,0.00027397,7]
[388343772,1759110643690,-228.48045653,0.00027397,7]
[388343773,1759110643699,-200.9072093,0.00027397,7]
[388343774,1759110643707,-480.0,0.00027397,7]
[388343775,1759110643716,-480.0,0.00027397,7]
[388343776,1759110643724,-480.0,0.00027397,7]
[388343777,1759110643734,-727.94,0.00027397,7]
[388343778,1759110643743,-480.0,0.00027397,7]
[388343779,1759110643753,-480.0,0.00027397,7]
[388343780,1759110643762,-532.84275469,0.00027397,7]
[388343781,1759110643773,-891.09,0.00027397,7]
[388343782,1759110643783,-480.0,0.00027397,7]
[388343783,1759110643791,-666.36,0.00027397,7]
[388343784,1759110643802,-480.0,0.00027397,7]
[388343785,1759110643811,-511.2,0.00027397,7]
[388343786,1759110643820,-760.48,0.00027397,7]
[388343787,1759110643828,-482.09343102,0.00027397,7]
[388343788,1759110643838,-480.0,0.00027397,7]
[388343789,1759110643847,-480.0,0.00027397,7]
[388343790,1759110643856,-480.0,0.00027397,7]
[388343791,1759110643866,-679.5,0.00027397,7]
[388343792,1759110643876,-480.0,0.00027397,7]
[388343793,1759110643885,-480.0,0.00027397,7]
[388343794,1759110643894,-724.5,0.00027397,7]
[388343795,1759110643903,-480.0,0.00027397,7]
[388343796,1759110643912,-480.0,0.00027397,7]
[388343797,1759110643921,-480.0,0.00027397,7]
[388343798,1759110643930,-480.0,0.00027397,7]
[388343799,1759110643939,-480.0,0.00027397,7]
[388343800,1759110643948,-480.0,0.00027397,7]
[388343801,1759110643958,-480.0,0.00027397,7]
[388343802,1759110643967,-650.51,0.00027397,7]
[388343803,1759110643976,-882.42,0.00027397,7]
[388343804,1759110643984,-605.3,0.00027397,7]
[388343805,1759110643994,-480.0,0.00027397,7]
[388343806,1759110644003,-481.93567429,0.00027397,7]
[388343807,1759110644012,-485.50318601,0.00027397,7]
[388343808,1759110644023,-2190.9,0.00027397,7]
[388343809,1759110644031,-480.0,0.00027397,7]
[388343810,1759110644041,-480.0,0.00027397,7]
[388343811,1759110644050,-601.19,0.00027397,7]
[388343812,1759110644059,-219.36670114,0.00027397,7]
[388343813,1759110644068,-480.0,0.00027397,7]
[388343814,1759110644077,-480.0,0.00027397,7]
[388343815,1759110644087,-480.0,0.00027397,7]
[388343816,1759110644097,-480.0,0.00027397,7]
[388343817,1759110644107,-480.0,0.00027397,7]
[388343818,1759110644116,-698.05,0.00027397,7]
[388343819,1759110644126,-983.56,0.00027397,7]
[388343820,1759110644136,-774.47,0.00027397,7]
[388343821,1759110644145,-1298.44,0.00027397,7]
[388343822,1759110644155,-572.66,0.00027397,7]
[388343823,1759110644164,-480.0,0.00027397,7]
[388343824,1759110644173,-586.23,0.00027397,7]
[388343825,1759110644183,-1149.5,0.00027397,7]
[388343826,1759110644192,-480.0,0.00027397,7]
[388343827,1759110644202,-480.0,0.00027397,7]
[388343828,1759110644212,-480.0,0.00027397,7]
[388343829,1759110644221,-480.0,0.00027397,7]
[388343830,1759110644231,-823.78,0.00027397,7]
[388343831,1759110644240,-839.76,0.00027397,7]
[388343832,1759110644250,-480.0,0.00027397,7]
[388343833,1759110644260,-915.34,0.00027397,7]
[388343834,1759110644270,-481.2495165,0.00027397,7]
[388343835,1759110644279,-480.0,0.00027397,7]
[388343836,1759110644289,-481.54993463,0.00027397,7]
[388343837,1759110644298,-480.0,0.00027397,7]
[388343838,1759110644307,-480.0,0.00027397,7]
[388343839,1759110644316,-501.19,0.00027397,7]
[388343840,1759110644326,-662.76,0.00027397,7]
[388343841,1759110644335,-480.0,0.00027397,7]
[388343842,1759110644344,-480.0,0.00027397,7]
[388343843,1759110644353,-480.0,0.00027397,7]
[388343844,1759110644363,-480.0,0.00027397,7]
[388343845,1759110644375,-480.0,0.00027397,7]
[388343846,1759110644384,-480.0,0.00027397,7]
[388343847,1759110644393,-721.46,0.00027397,7]
[388343848,1759110644402,-480.0,0.00027397,7]
[388343849,1759110644413,-640.27,0.00027397,7]
[388343850,1759110644422,-160.0,0.00027397,7]
[388343851,1759110644431,-676.82,0.00027397,7]
[388343852,1759110644439,-480.0,0.00027397,7]
[388343853,1759110644450,-2386.29,0.00027397,7]
[388343854,1759110644460,-480.0,0.00027397,7]
[388343855,1759110644469,-501.92492663,0.00027397,7]
[388343857,1759110644478,-480.0,0.00027397,7]
[388343858,1759110644487,-794.96,0.00027397,7]
[388343860,1759110644497,-480.0,0.00027397,7]
[388343861,1759110644506,-400.06114449,0.00027397,7]
[388343862,1759110644515,-1430.36,0.00027397,7]
[388343863,1759110644525,-480.0,0.00027397,7]
[388343864,1759110644534,-480.0,0.00027397,7]
[388343865,1759110644544,-480.0,0.00027397,7]
[388343866,1759110644553,-480.0,0.00027397,7]
[388343867,1759110644563,-480.0,0.00027397,7]
[388343868,1759110644573,-630.09,0.00027397,7]
[388343869,1759110644581,-597.23,0.00027397,7]
[388343870,1759110644591,-598.19,0.00027397,7]
[388343871,1759110644600,-552.24129499,0.00027397,7]
[388343872,1759110644609,-480.0,0.00027397,7]
[388343873,1759110644619,-1266.6,0.00027397,7]
[388343875,1759110644628,-1191.19,0.00027397,7]
[388343877,1759110644637,-684.42,0.00027397,7]
[388343879,1759110644647,-480.0,0.00027397,7]
[388343881,1759110644656,-480.0,0.00027397,7]
[388343882,1759110644665,-480.0,0.00027397,7]
[388343884,1759110644674,-775.12,0.00027397,7]
[388343886,1759110644682,-480.0,0.00027397,7]
[388343887,1759110644692,-480.0,0.00027397,7]
[388343889,1759110644701,-500.0,0.00027397,7]
[388343890,1759110644710,-480.8531754,0.00027397,7]
[388343891,1759110644719,-480.0,0.00027397,7]
[388343892,1759110644728,-480.0,0.00027397,7]
[388343893,1759110644737,-1142.41,0.00027397,7]
[388343894,1759110644746,-482.69320917,0.00027397,7]
[388343895,1759110644755,-597.86,0.00027397,7]
[388343896,1759110644764,-480.0,0.00027397,7]
[388343897,1759110644774,-803.13,0.00027397,7]
[388343898,1759110644784,-480.0,0.00027397,7]
[388343899,1759110644793,-480.0,0.00027397,7]
[388343900,1759110644802,-480.0,0.00027397,7]
[388343901,1759110644811,-486.03985643,0.00027397,7]
[388343902,1759110644820,-480.0,0.00027397,7]
[388343903,1759110644830,-754.68,0.00027397,7]
[388343904,1759110644839,-2528.82,0.00027397,7]
[388343905,1759110644848,-480.0,0.00027397,7]
[388343906,1759110644857,-2684.29,0.00027397,7]
[388343907,1759110644866,-481.7778524,0.00027397,7]
[388343908,1759110644875,-885.44,0.00027397,7]
[388343909,1759110644885,-480.0,0.00027397,7]
[388343910,1759110644894,-480.0,0.00027397,7]
[388343911,1759110644903,-406.98017044,0.00027397,7]
[388343912,1759110644912,-632.6,0.00027397,7]
[388343913,1759110644920,-654.07,0.00027397,7]
[388343914,1759110644930,-480.0,0.00027397,7]
[388343915,1759110644939,-480.0,0.00027397,7]
[388343916,1759110644948,-1157.9,0.00027397,7]
[388343917,1759110644958,-480.0,0.00027397,7]
[388343918,1759110644967,-1789.58,0.00027397,7]
[388343919,1759110644976,-151.0,0.00027397,7]
[388343920,1759110644985,-151.0,0.00027397,7]
[388343921,1759110644995,-480.0,0.00027397,7]
[388343922,1759110645004,-151.0,0.00027397,7]
[388343923,1759110645013,-151.0,0.00027397,7]
[388343924,1759110645023,-1180.98,0.00027397,7]
[388343925,1759110645032,-513.55,0.00027397,7]
[388343926,1759110645041,-740.49,0.00027397,7]
[388343927,1759110645050,-480.0,0.00027397,7]
[388343928,1759110645059,-854.26,0.00027397,7]
[388343929,1759110645068,-151.0,0.00027397,7]
[388343930,1759110645078,-151.0,0.00027397,7]
[388343931,1759110645086,-670.37,0.00027397,7]
[388343932,1759110645096,-480.0,0.00027397,7]
[388343933,1759110645105,-480.0,0.00027397,7]
[388343934,1759110645113,-736.36,0.00027397,7]
[388343935,1759110645122,-480.0,0.00027397,7]
[388343936,1759110645131,-667.92,0.00027397,7]
[388343937,1759110645141,-151.0,0.00027397,7]
[388343938,1759110645150,-151.0,0.00027397,7]
[388343939,1759110645159,-480.0,0.00027397,7]
[388343940,1759110645167,-480.0,0.00027397,7]
[388343941,1759110645177,-151.0,0.00027397,7]
[388343942,1759110645186,-151.0,0.00027397,7]
[388343943,1759110645195,-962.89,0.00027397,7]
[388343944,1759110645205,-3363.29,0.00027397,7]
[388343945,1759110645214,-700.04,0.00027397,7]
[388343946,1759110645223,-480.0,0.00027397,7]
[388343947,1759110645233,-2852.67,0.00027397,7]
[388343948,1759110645242,-621.66,0.00027397,7]
[388343949,1759110645251,-480.0,0.00027397,7]
[388343950,1759110645261,-1756.7,0.00027397,7]
[388343951,1759110645274,-481.37746699,0.00027397,7]
[388343952,1759110645283,-481.37288533,0.00027397,7]
[388343953,1759110645292,-1740.32,0.00027397,7]
[388343955,1759110645301,-612.36,0.00027397,7]
[388343957,1759110645311,-951.54,0.00027397,7]
[388343958,1759110645320,-505.94557014,0.00027397,7]
[388343960,1759110645339,-330.53442986,0.00027397,7]
[388343961,1759110645348,-0.87842245,0.00027397,7]
[388343962,1759110646068,-500.0,0.00025983,2]
[388343963,1759110646077,-76.59882358,0.00025983,2]
[388343964,1759110646092,-83.10944059,0.00025983,2]
[388343965,1759110646101,-163.30938254,0.00025998,2]
[388343966,1759110646111,-819.58117687,0.00027084,7]
[388343973,1759110647067,-163.68863154,0.00025997,2]
[388343974,1759110647080,-1336.09815997,0.00025997,2]
[388343975,1759110647093,-774.76772455,0.00025997,2]
[388343992,1759110653843,5000.0,0.00025205,2]
[388344009,1759110676844,345.99823041,0.00025205,2]
[388344010,1759110676870,1592.09487215,0.00025205,2]
[388344017,1759110846940,160.0,0.00025205,2]
[388344018,1759110871488,1744.83934495,0.00025205,2]
[388344019,1759110916228,1448.5916827,0.00024891,2]
[388344020,1759110930233,223.794692,0.00024891,2]
[388344021,1759110965122,188.4075913,0.0002509,2]
[388344023,1759111159050,666.0,0.00024887,2]
[388344025,1759111290085,849.417218,0.00024887,2]
[388344040,1759111425434,258.99,0.00025,2]
[388344043,1759111482992,2358.2792056,0.00024826,2]
[388344074,1759111560181,1241.0,0.00025205,2]
[388344085,1759111679665,172.28,0.00018981,2]
[388344088,1759111712722,110464.863721,0.00033816,60]
[388344103,1759111832201,-265.47397848,0.00025205,2]
[388344104,1759111832210,-82.16919492,0.000253,2]
[388344105,1759111832221,-152.01080508,0.000253,2]
[388344106,1759111832230,-1200.0,0.00025497,2]
[388344107,1759111832240,-172.0,0.00025497,2]
[388344108,1759111832249,-300.0,0.00025497,2]
[388344109,1759111832258,-300.0,0.00025497,2]
[388344110,1759111832267,-300.0,0.00025497,2]
[388344111,1759111832276,-300.0,0.00025497,2]
[388344112,1759111832286,-160.0,0.0002588,2]
[388344113,1759111832301,-347.6431734,0.0002588,2]
[388344114,1759111832315,-250.0,0.00025884,2]
[388344116,1759111832324,-255.75395028,0.00025884,2]
[388344117,1759111832334,-1200.0,0.00025889,2]
[388344118,1759111832343,-9374.4033477,0.0002589,2]
[388344119,1759111832357,-501.61766946,0.0002589,2]
[388344225,1759111837894,-429.13536988,0.00025889,2]
[388344226,1759111837905,-76.6185804,0.0002589,2]
[388344227,1759111837947,-27208.51190924,0.0002589,2]
[388344228,1759111837957,-262.36,0.0002589,3]
[388344229,1759111837966,-787.08,0.0002589,3]
[388344230,1759111837976,-500.0,0.00025899,2]
[388344231,1759111837985,-500.0,0.00025899,2]
[388344232,1759111837994,-500.0,0.00025899,2]
[388344233,1759111838003,-500.0,0.00025899,2]
[388344234,1759111838013,-500.0,0.00025899,2]
[388344235,1759111838022,-500.0,0.00025899,2]
[388344236,1759111838031,-500.0,0.00025899,2]
[388344237,1759111838041,-500.0,0.00025899,2]
[388344238,1759111838051,-500.0,0.00025899,2]
[388344239,1759111838060,-500.0,0.00025899,2]
[388344241,1759111838070,-500.0,0.00025899,2]
[388344242,1759111838079,-500.0,0.00025899,2]
[388344243,1759111838089,-500.0,0.00025899,2]
[388344244,1759111838099,-500.0,0.00025899,2]
[388344245,1759111838109,-500.0,0.00025899,2]
[388344246,1759111838118,-500.0,0.00025899,2]
[388344247,1759111838127,-500.0,0.00025899,2]
[388344248,1759111838136,-500.0,0.00025899,2]